Cogmind - Beta 9.6 @@@ ROGUE MODE // 2020.07.31 @ 02:22:10 Player: Phillammon Result: Destroyed by Y-45 Defender with Beam Rifle Performance ------------- Evolutions (2) 1000 Regions Visited (5) 1000 Robots Destroyed (13) 65 Value Destroyed (169) 169 Prototype IDs (0) 0 Alien Tech Used (0) 0 Bonus (0) 0 TOTAL SCORE: 2234 Bonus ------- None Cogmind --------- Core Integrity 0/550 Matter 300/300 Energy 100/100 System Corruption 0% Temperature Cool (18) Movement Core (50) Location -8/Materials Parts ------- > --- POWER (1) -------- (None) > --- PROPULSION (3) --- (None) > --- UTILITY (5) ------ (None) > --- WEAPON (2) ------- (None) > --- INVENTORY (4) ---- (None) Peak State ------------ > --- POWER ------------ Light Ion Engine > --- PROPULSION ------- Combat Airjet > --- UTILITY ---------- Small Storage Unit > --- WEAPON ----------- Light EM Pulse Cannon Light Assault Rifle > --- INVENTORY -------- Flight Unit Flight Unit [Rating: 10] Favorites ----------- Power Ion Engine Engine Ion Engine Propulsion Wheel Leg Aluminum Leg Wheel Wheel Hover Unit Combat Airjet Flight Unit Flight Unit Utility Small Storage Unit Device Reclamation Unit Storage Small Storage Unit Processor Melee Analysis Suite Weapon Small Laser Energy Gun Small Laser Energy Cannon Light EM Pulse Cannon Ballistic Gun Light Assault Rifle Ballistic Cannon Improved Light Cannon Launcher Rocket Launcher Impact Weapon Maul Build | -11 -10 -10 -9 -9 -8 ------- Run | Scr Mat Min Mat Min Mat Slots Evolved 4 | . . . 2 . 2 Power . | . . . . . . Propulsion 1 | . . . . . 1 Utility 3 | . . . 2 . 1 Weapon . | . . . . . . Parts Attached 19 | 2 . 4 8 . 5 Power 2 | . . . 2 . . Engine 2 | . . . 2 . . Core . | . . . . . . Reactor . | . . . . . . Propulsion 6 | 2 . 1 3 . . Treads . | . . . . . . Leg . | . . . . . . Wheel 2 | 2 . . . . . Hover 1 | . . 1 . . . Flight 3 | . . . 3 . . Utility 2 | . . . 1 . 1 Device 1 | . . . 1 . . Storage . | . . . . . . Processor 1 | . . . . . 1 Hackware . | . . . . . . Protection . | . . . . . . Artifact . | . . . . . . Weapon 9 | . . 3 2 . 4 Energy Gun 1 | . . 1 . . . Energy Cannon 1 | . . . 1 . . Ballistic Gun 4 | . . 1 . . 3 Ballistic Cannon 1 | . . . 1 . . Launcher 1 | . . 1 . . . Special Weapon . | . . . . . . Impact Weapon 1 | . . . . . 1 Slashing Weapon . | . . . . . . Piercing Weapon . | . . . . . . Special Melee Weapon . | . . . . . . Unidentified Prototypes . | . . . . . . Parts Lost 20 | . . 6 6 . 8 Power 2 | . . 1 1 . . Propulsion 6 | . . 2 2 . 2 Utility 2 | . . . . . 2 Weapon 10 | . . 3 3 . 4 Highest Loss Streak 8 | . . 6 3 . 8 Average Slot Usage (%) 48 | . 85 67 37 33 18 Engine 4 | . 14 7 2 . . Wheel 9 | . 28 20 . . . Hover 3 | . . 2 6 . . Flight 4 | . . . 6 22 6 Device 2 | . . . 2 11 5 Storage 8 | . 14 14 7 . . Energy Gun 6 | . 28 13 . . . Ballistic Gun 1 | . . . 2 . 2 Ballistic Cannon 2 | . . . 6 . . Launcher 2 | . . 7 . . . Naked Turns . | . . . . . . Heaviest Build 15 | 12 12 14 15 1 4 Greatest Support 22 | 20 20 22 22 4 4 Greatest Overweight (x) 1 | . . 1 . . 1 Average Overweight (x) . | . . . . . . Largest Inventory Capacity 6 | 6 6 6 6 4 4 Average Capacity 5 | 6 6 6 5 4 4 Most Carried 6 | 6 . 5 4 1 2 Average Carried 1 | 2 . 1 1 1 . Final Capacity 6 | 6 6 6 4 4 4 Final Carried 3 | . . 3 1 1 . Class Distribution -------------------- 100% | Mutant Dominant Class ---------------- Mutant | -10/Materials Mutant | -10/Mines Mutant | -9/Materials Mutant | -9/Mines Mutant | -8/Materials Resources | -11 -10 -10 -9 -9 -8 ----------- Run | Scr Mat Min Mat Min Mat Matter Collected 469 | 219 . 77 16 . 157 Remotely . | . . . . . . Salvage Created 161 | . . 12 65 . 84 Parts 20 | . . 3 6 . 11 Haulers Intercepted . | . . . . . . Recyclers Shooed . | . . . . . . Parts Field Recycled . | . . . . . . Retrieved Matter . | . . . . . . Parts Self-Destructed . | . . . . . . Prevented . | . . . . . . Kills | -11 -10 -10 -9 -9 -8 ------- Run | Scr Mat Min Mat Min Mat Combat Hostiles Destroyed 13 | . . 3 5 . 5 Melee 1 | . . . . . 1 Guns 6 | . . 2 . . 4 Cannons 5 | . . . 5 . . AOE 1 | . . 1 . . . Classes Destroyed 4 | . . 2 2 . . Swarmer 9 | . . 1 3 . 5 Grunt 1 | . . . 1 . . Sentry 1 | . . . 1 . . Assembled 2 | . . 2 . . . Best Kill Streak 5 | . . 2 5 . 5 Combat Bots Only 5 | . . 2 5 . 5 Max Kills in Single Turn 1 | . . 1 1 . 1 Gunslinging . | . . . . . . Exploded 1 | . . 1 . . . Melee 1 | . . . . . 1 Uniques/NPCs Destroyed . | . . . . . . Combat | -11 -10 -10 -9 -9 -8 -------- Run | Scr Mat Min Mat Min Mat Damage Taken 2263 | . 12 640 687 . 924 Core 1056 | . . 246 260 . 550 Absorbed by Shields . | . . . . . . Core Remaining (%) 45 | 100 . 1 . 35 . Volleys Fired 37 | . . 8 22 . 7 Largest 2 | . . 2 1 . 2 Hottest 73 | . . 73 39 . 40 Shots Fired 46 | . . 14 22 . 10 Gun 18 | . . 8 . . 10 Cannon 22 | . . . 22 . . Launcher 6 | . . 6 . . . Special . | . . . . . . Kinetic 34 | . . 2 22 . 10 Thermal 6 | . . 6 . . . Explosive 6 | . . 6 . . . Electromagnetic . | . . . . . . Robot Hit Streak 11 | . . 3 7 . 11 Robot Miss Streak 2 | . . 1 2 . 1 Penetration Max . | . . . . . . Secondary Targets 2 | . . . . . 2 Max Gunslinging Chain 1 | . . . . . 1 Shots Hit Robots 35 | . . 9 17 . 9 Core Hits 19 | . . 7 6 . 6 Critical Hits . | . . . . . . Critical Kills . | . . . . . . Critical Parts Destroyed . | . . . . . . Melee Attacks 4 | . . . . . 4 Impact 4 | . . . . . 4 Slashing . | . . . . . . Piercing . | . . . . . . Sneak Attacks . | . . . . . . Combat Hostiles . | . . . . . . Follow-up Attacks . | . . . . . . Damage Inflicted 760 | . . 267 381 . 112 Guns 113 | . . 51 . . 62 Cannons 381 | . . . 381 . . Explosions 216 | . . 216 . . . Melee 50 | . . . . . 50 Ramming . | . . . . . . Kinetic 451 | . . 8 381 . 62 Thermal 43 | . . 43 . . . Explosive 216 | . . 216 . . . Electromagnetic . | . . . . . . Impact 50 | . . . . . 50 Slashing . | . . . . . . Piercing . | . . . . . . Highest Corruption . | . . . . . . Average Corruption . | . . . . . . Corruption Purged . | . . . . . . Overload Shots . | . . . . . . Overflow Damage 23 | . . 21 2 . . Projectiles 2 | . . . 2 . . Explosions 21 | . . 21 . . . Melee . | . . . . . . Knockbacks 7 | . . . 7 . . Impact . | . . . . . . Kinetic 6 | . . . 6 . . Secondary 1 | . . . 1 . . Self-Inflicted Damage . | . . . . . . Shots . | . . . . . . Rammed . | . . . . . . Targets Rammed . | . . . . . . Kicked . | . . . . . . Crushed . | . . . . . . Highest Temperature 24 | . . 24 22 . . Average Temperature 10 | . . 11 10 . . Received Heat Transfer 424 | . 6 40 243 . 135 Siege Activations . | . . . . . . Robots Corrupted . | . . . . . . Combat Hostiles . | . . . . . . Parts Fried . | . . . . . . Impact Corruptions . | . . . . . . Robots Melted . | . . . . . . Combat Hostiles . | . . . . . . Parts Melted . | . . . . . . Heat Transferred 112 | . . 112 . . . Parts Sabotaged . | . . . . . . Parts Stolen . | . . . . . . Parts Stripped . | . . . . . . Power Chain Reactions . | . . . . . . Missiles Intercepted . | . . . . . . Alert | -11 -10 -10 -9 -9 -8 ------- Run | Scr Mat Min Mat Min Mat Peak Influence 120 | . . 30 120 46 82 Average Influence 27 | . . 2 58 46 30 Maximum Alert Level . | . . . . . . Low Security (%) 100 | 100 100 100 100 100 100 Level 1 . | . . . . . . Level 2 . | . . . . . . Level 3 . | . . . . . . Level 4 . | . . . . . . Level 5 . | . . . . . . High Security . | . . . . . . Max Security . | . . . . . . Squads Dispatched 1 | . . . 1 . . Investigation . | . . . . . . Extermination . | . . . . . . Reinforcement 1 | . . . 1 . . Assault . | . . . . . . Garrison . | . . . . . . Intercept . | . . . . . . Construction Impeded . | . . . . . . Haulers Reinforced . | . . . . . . Stealth | -11 -10 -10 -9 -9 -8 --------- Run | Scr Mat Min Mat Min Mat Distress Signals 1 | . . . 1 . . Communications Jammed . | . . . . . . Distress Signals . | . . . . . . Times Spotted 35 | . 1 7 17 . 10 Peak Tracking Total 10 | . 2 4 10 . 10 Tactical Retreats 1 | . . . 1 . . Traps | -11 -10 -10 -9 -9 -8 ------- Run | Scr Mat Min Mat Min Mat Traps Triggered . | . . . . . . Indirectly . | . . . . . . Trap Hack Attempts . | . . . . . . Triggered . | . . . . . . Disarmed . | . . . . . . Reprogrammed . | . . . . . . Reused . | . . . . . . Traps Extracted . | . . . . . . Installed . | . . . . . . Triggered . | . . . . . . Machines | -11 -10 -10 -9 -9 -8 ---------- Run | Scr Mat Min Mat Min Mat Machines Disabled . | . . . . . . Max in Single Turn . | . . . . . . Machines Sabotaged . | . . . . . . Garrisons Compromised . | . . . . . . Overloaded Fab Kills . | . . . . . . Fab Network Shutdowns . | . . . . . . Hacking | -11 -10 -10 -9 -9 -8 --------- Run | Scr Mat Min Mat Min Mat Machines Accessed . | . . . . . . Terminals . | . . . . . . Fabricators . | . . . . . . Repair Stations . | . . . . . . Recycling Units . | . . . . . . Scanalyzers . | . . . . . . Garrison Access . | . . . . . . Total Hacks . | . . . . . . Successful . | . . . . . . Failed . | . . . . . . Catastrophic . | . . . . . . Database Lockouts . | . . . . . . Manual . | . . . . . . Terminals . | . . . . . . Fabricators . | . . . . . . Repair Stations . | . . . . . . Recycling Units . | . . . . . . Scanalyzers . | . . . . . . Garrison Access . | . . . . . . Terminal Hacks . | . . . . . . Fabricator Hacks . | . . . . . . Repair Station Hacks . | . . . . . . Recycling Unit Hacks . | . . . . . . Scanalyzer . | . . . . . . Garrison Access Hacks . | . . . . . . Unauthorized Hacks . | . . . . . . Terminals . | . . . . . . Fabricators . | . . . . . . Repair Stations . | . . . . . . Recycling Units . | . . . . . . Scanalyzers . | . . . . . . Garrison Access . | . . . . . . Data Cores Recovered . | . . . . . . Used . | . . . . . . Hacking Detections . | . . . . . . Full Trace Events . | . . . . . . Feedback Events . | . . . . . . Feedback Blocked . | . . . . . . Robot Schematics Acquired . | . . . . . . Robots Built . | . . . . . . Matter . | . . . . . . Time . | . . . . . . Total Robot Build Rating . | . . . . . . Part Schematics Acquired . | . . . . . . Parts Built . | . . . . . . Matter . | . . . . . . Time . | . . . . . . Total Part Build Rating . | . . . . . . Parts Repaired . | . . . . . . Time . | . . . . . . Parts Recycled . | . . . . . . Recycled Matter . | . . . . . . Retrieved Matter . | . . . . . . Retrieved Components . | . . . . . . Parts Scanalyzed . | . . . . . . Part Schematics Acquired . | . . . . . . Parts Damaged . | . . . . . . Bothacking | -11 -10 -10 -9 -9 -8 ------------ Run | Scr Mat Min Mat Min Mat Used RIF Installer . | . . . . . . Robots Hacked . | . . . . . . Non-combat . | . . . . . . Combat . | . . . . . . Robot Hacks Applied . | . . . . . . Relay Couplers Released . | . . . . . . Robots Rewired . | . . . . . . Allies Hacked . | . . . . . . Hacks Repelled . | . . . . . . Allies | -11 -10 -10 -9 -9 -8 -------- Run | Scr Mat Min Mat Min Mat Total Allies . | . . . . . . Largest Group . | . . . . . . Highest-Rated Group . | . . . . . . Highest-Rated Ally . | . . . . . . Total Orders . | . . . . . . Ally Attacks . | . . . . . . Total Damage . | . . . . . . Kills . | . . . . . . Allies Corrupted . | . . . . . . Allies Melted . | . . . . . . Intel | -11 -10 -10 -9 -9 -8 ------- Run | Scr Mat Min Mat Min Mat Robot Analysis Total . | . . . . . . Derelict Logs Recovered 2 | . . 2 . . . Drone Launches . | . . . . . . Drone Recoveries . | . . . . . . Exploration | -11 -10 -10 -9 -9 -8 ------------- Run | Scr Mat Min Mat Min Mat Turns Passed 451 | 14 25 169 154 26 63 Spaces Moved 464 | 11 31 171 157 31 63 Core 12 | . . 4 . . 8 Treads . | . . . . . . Legs . | . . . . . . Wheels 175 | 11 31 133 . . . Hover 95 | . . 34 61 . . Flight 182 | . . . 96 31 55 Fastest Speed 37 | 80 80 80 37 40 40 Average Speed 63 | 80 80 80 53 40 42 Slowest Speed 100 | 80 80 100 80 40 100 Overloaded Moves . | . . . . . . Propulsion Burnouts . | . . . . . . Robots Hopped 8 | . . . 4 3 1 Cave-ins Triggered . | . . . . . . Exploration Rate (%) 19 | 2 13 54 25 12 9 Regions Visited 5 Branch Regions 2 Pre-discovered Areas 1 | . . 1 . . . Known Exits Taken . | . . . . . . Unknown Exits Taken 5 | 1 1 1 1 1 . Scrap Searched . | . . . . . . Spaces Dug . | . . . . . . Terrain Destroyed 41 | . . 41 . . . Melee . | . . . . . . Projectile . | . . . . . . AOE 41 | . . 41 . . . Actions | -11 -10 -10 -9 -9 -8 --------- Run | Scr Mat Min Mat Min Mat Total 560 | 18 30 188 201 41 82 Wait 25 | . . . 11 14 . Move 445 | 10 30 170 149 25 61 Hop 6 | . . . 3 2 1 Pick Up 16 | . . 6 6 . 4 Fast Attach . | . . . . . . Attach 16 | . . 3 8 . 5 Detach . | . . . . . . Swap 3 | 2 . 1 . . . Drop 8 | 6 . . 2 . . Fire 37 | . . 8 22 . 7 Melee 4 | . . . . . 4 Ram . | . . . . . . Kick . | . . . . . . Crush . | . . . . . . Escape Stasis . | . . . . . . Rewire . | . . . . . . Trap . | . . . . . . Miscellaneous . | . . . . . . Route ------- -11/Scrapyard -10/Materials -10/Mines -9/Materials -9/Mines -8/Materials (discovered 1 exit: Sto) History --------- Turn | Location | Event 8 | -11/Scrapyard | Discovered new exit (range 3) 15 | -11/Scrapyard | Entered Materials 28 | -10/Materials | Discovered new exit (range 15) 40 | -10/Materials | Entered Mines 41 | -10/Mines | Assembled infested the area 48 | -10/Mines | Learned location of Storage (-8) 76 | -10/Mines | Received a Rocket Launcher from a helpful Derelict 151 | -10/Mines | Core integrity fell below 50% 187 | -10/Mines | Core integrity fell below 20% 194 | -10/Mines | Discovered new exit (range 11) 209 | -10/Mines | Entered Materials 209 | -9/Materials | Evolved 2 slots: Utility x2 230 | -9/Materials | Lost 6 parts (1p2n3w) 280 | -9/Materials | Lost 3 parts (1p2w) 307 | -9/Materials | Core integrity fell below 50% 336 | -9/Materials | Build established: Mutant 360 | -9/Materials | Discovered new exit (range 10) 363 | -9/Materials | Entered Mines 385 | -9/Mines | Discovered new exit (range 10) 389 | -9/Mines | Entered Materials 389 | -8/Materials | Evolved 2 slots: Propulsion x1, Utility x1 390 | -8/Materials | Identified exit to Storage 431 | -8/Materials | Core integrity fell below 50% 443 | -8/Materials | Core integrity fell below 20% 452 | -8/Materials | Destroyed by Y-45 Defender with Beam Rifle Last Messages --------------- 00435_ Melee Analysis Suite destroyed. 00436_ Acquired 11 matter. 00436_ R-06 Scavenger collects Flight Unit. 00438_ S-10 Pest destroyed. 00438_ Switching to secondary target: Y-45 Defender. 00438_ K-01 Serf collects debris. 00439_ Lgt. Assault Rifle destroyed. 00441_ K-01 Serf collects debris. 00443_ Acquired Lgt. Assault Rifle. 00445_ S-10 Pest destroyed. 00445_ K-01 Serf collects debris. 00445_ Lgt. Assault Rifle destroyed. 00446_ Acquired 13 matter. 00447_ S-10 Pest destroyed. 00448_ Acquired 9 matter. 00449_ S-10 Pest destroyed. 00449_ K-01 Serf collects debris. 00450_ Acquired 1 matter. 00452_ K-01 Serf collects debris. 00452_ Lgt. Assault Rifle destroyed. Map ----- +----------------------------------------------------+ | ?????????????????????????????????????????????????? | | ?????????????????????????????????????????????????? | | ?????????????????????????????????????????????????? | | ?????????????????????????????????????????????????? | | ?????????????????????????????????????????????????? | | ?????????????????????????????????????????????????? | | ?????????????????????????????????????????????????? | | ?????????????????????????????????????????????????? | | ??????????????????????? ????????????????????????? | | ??????????????????????? ????????????????????????? | | ??????????????????????? ????????????????????????? | | ??????????????????????? ????????????????????????? | | ??????????????????????? ????????????????????????? | | ??????????????????????? ????????????????????????? | | ??????????????????????? ????????????????????????? | | ??????????????????????? #???????????????????????? | | ??????????????????????? #???????????????????????? | | ??????????????????????? #???????????????????????? | | ?????????????######????# #???????????????????????? | | ?????????????# ????# #???????????????????????? | | ?????????????# ! ????# #???????????????????????? | | ?????????????# """ ?# #???????????????????????? | | ?????????????# """""##=#???????????????????????? | | ?????????????# """""##%#???????????????????????? | | ?????????????# """""##+#######?????????????????? | | ?????????????# """ ?#=@=* #?????????????????? | | ?????????????# ???#%*=[= #?????????????????? | | ???????####### ?????#%YY% #?????????????????? | | ???????# ##+######## [k #?????????????????? | | ???????# # #?????????????????? | | ???????# + #?????????????????? | | ???????# # #?????????????????? | | ???????# ##+######## #?????????????????? | | ?########!| ## ??????# #?????????????????? | | ?# #%= ## ??????# #?????????????????? | | ?# % += ## ??????# #?????????????????? | | ?# # ## ??????#########?????????????????? | | ?# """ # ## ????????????????????????????????? | | ?# """ =# ## ????????????????????????????????? | | ?# """ # # ????????????????????????????????? | | ?######## ## ????????????????????????????????? | | ????????# ## ????????????????????????????????? | | ?######?# #####????????????????????????????????? | | ?# ! # #????????????????????????????????????? | | ?# # #????????????????????????????????????? | | ?# + #????????????????????????????????????? | | ?# # #????????????????????????????????????? | | ?# "Y" # #????????????????????????????????????? | | ?# """ ?# #????????????????????????????????????? | | ?######?# #????????????????????????????????????? | +----------------------------------------------------+ Best States ------------- Heat Dissipation 31 Energy Generation 12 Energy Capacity 265 Matter Stores 300 Matter Capacity 300 Sight Range 16 Terrain Scan Density 10 Reclamation Efficiency 10 Evasion (%) 62 Melee Accuracy 5 Item Schematics ----------------- None Robot Schematics ------------------ None Fabricated ------------ Nothing Alien Tech Used ----------------- None Achievements -------------- None Challenges ------------ None Game ------ Seed SpectralAutogunRipper Manual? 0 Play Time 00:08:54 Cumulative 26.0 hours Start 2020.07.31 @ 02:14:28 End 2020.07.31 @ 02:22:10 Sessions 1 Manual Loads 0 Difficulty Rogue Special Mode None Game No. 67 Rogue 67 Adventurer 0 Explorer 0 Win Type - Total 0 Types 0/0/0/0/0/0/0 Lore% 30 Gallery% 35 Achievement% 32 Wizard Run 0 Options --------- ASCII 0 Keyboard 0 Movement Mouse Keybinds 0 Fullscreen 1 Font 18/SmallcapsGlow Map View 76x50 Tactical HUD 1 Map Filters NONE Filters NONE Steam 0 RUN: b7c40f30-01e7-473d-bba8-81ba1bb28e4d